bitfinex/quotes_SOLUSD_20251119
["timestamp","ask_amount","ask_price","bid_price","bid_amount"]
[1763574997137,7.15213486,132.22,132.18,23.00303313]
[1763574997458,7.15213486,132.2,132.19,1.82]
[1763574997855,14.71643138,132.2,132.19,1.82]
[1763574998970,7.15213486,132.2,132.19,1.82]
[1763574999346,18.80096,132.24,132.19,2.5]
[1763574999542,44.58807096,132.24,132.2,0.68]
[1763574999866,14.71480186,132.23,132.2,0.68]
[1763575000369,18.12096,132.23,132.2,0.68]
[1763575000572,7.56655695,132.31,132.2,0.68]
[1763575000573,7.15213486,132.32,132.22,7.15213486]
[1763575000794,0.68,132.31,132.23,1.82]
[1763575001068,0.68,132.31,132.23,8.97213486]
[1763575001069,7.15213486,132.28,132.23,8.97213486]
[1763575001363,7.15213486,132.27,132.24,0.68]
[1763575001735,7.56086496,132.26,132.25,1.82]
[1763575001944,14.71299982,132.26,132.25,1.82]
[1763575002146,33.61516222,132.26,132.24,1.82]
[1763575002367,7.15213486,132.25,132.24,1.82]
[1763575002564,7.15213486,132.26,132.24,1.82]
[1763575003758,7.56143667,132.25,132.24,1.82]
[1763575004772,7.15213486,132.26,132.24,1.82]
[1763575004773,7.15213486,132.27,132.24,1.82]
[1763575005154,7.15213486,132.26,132.24,1.82]
[1763575005647,0.68,132.27,132.24,1.82]
[1763575005847,7.56143667,132.25,132.24,1.82]
[1763575006054,14.71357153,132.25,132.24,1.82]
[1763575006568,34.29716321,132.25,132.19,80.90096]
[1763575006771,7.15213486,132.22,132.2,1.82]
[1763575006969,7.15213486,132.22,132.2,62.1]
[1763575007176,7.15213486,132.22,132.21,1.82]
[1763575007745,7.56372437,132.21,132.2,62.1]
[1763575008078,7.56372437,132.21,132.2,63.92]
[1763575008479,14.71585923,132.21,132.2,1.82]
[1763575008658,26.47303531,132.21,132.19,1.82]
[1763575008975,0.68,132.26,132.2,0.68]
[1763575009180,0.68,132.26,132.19,1.82]
[1763575009181,7.15213486,132.21,132.19,1.82]
[1763575009686,7.15213486,132.2,132.19,1.82]
[1763575009853,14.71643138,132.2,132.19,1.82]
[1763575010189,14.71643138,132.2,132.17,0.68]
[1763575010351,7.15213486,132.19,132.17,0.68]
[1763575010776,18.90839872,132.22,132.17,0.68]
[1763575010960,7.15213486,132.21,132.17,0.68]
[1763575011155,14.71585923,132.21,132.17,0.68]
[1763575011865,14.71585923,132.21,132.17,15.39798606]
[1763575012099,7.56372437,132.21,132.17,7.83213486]
[1763575012252,14.71585923,132.21,132.18,0.71]
[1763575012456,14.71585923,132.21,132.19,1.82]
[1763575012959,7.15213486,132.22,132.19,2.53]
[1763575013150,14.71563613,132.22,132.19,2.53]
[1763575013372,7.15213486,132.22,132.19,2.53]
[1763575013579,14.7148661,132.23,132.19,2.53]
[1763575013777,7.15213486,132.22,132.19,2.53]
[1763575013957,14.7158001,132.22,132.19,2.53]
[1763575014165,7.15213486,132.21,132.19,1.82]
[1763575014362,7.15213486,132.23,132.2,0.71]
[1763575014569,7.15213486,132.22,132.19,1.82]
[1763575014967,7.15213486,132.21,132.19,1.82]
[1763575015180,7.15213486,132.2,132.19,1.82]
[1763575015750,0.68,132.22,132.19,1.82]
[1763575015751,7.15213486,132.21,132.19,1.82]
[1763575015951,7.56429652,132.2,132.19,1.82]
[1763575016160,7.56429652,132.2,132.19,2.53]
[1763575016579,14.71590924,132.21,132.19,2.53]
[1763575016881,7.15213486,132.23,132.2,0.71]
[1763575017576,7.15213486,132.23,132.19,1.82]
[1763575017773,7.15213486,132.23,132.2,0.71]
[1763575017970,14.71528718,132.22,132.19,1.82]
[1763575018658,14.71528718,132.22,132.19,2.53]
[1763575018857,7.15213486,132.21,132.19,1.82]
[1763575019387,7.15213486,132.2,132.19,1.82]
[1763575019683,7.15213486,132.21,132.19,1.82]
[1763575020067,18.12096,132.24,132.16,85.24513506]
[1763575020068,8.24429652,132.2,132.16,85.24513506]
[1763575020380,7.15213486,132.18,132.17,1.82]
[1763575020687,7.15213486,132.19,132.17,1.82]
[1763575020876,7.56429652,132.2,132.17,2.53]
[1763575021072,7.15213486,132.19,132.17,1.82]
[1763575021286,15.39643138,132.2,132.17,1.82]
[1763575021783,14.71643138,132.2,132.17,2.53]
[1763575022767,29.48223905,132.2,132.17,1.82]
[1763575022972,3.00720123,132.19,132.17,1.82]
[1763575023478,3.00720123,132.18,132.17,1.82]
[1763575023670,3.00720123,132.19,132.17,2.53]
[1763575023865,3.00720123,132.19,132.17,1.82]
[1763575024371,3.00720123,132.2,132.17,2.53]
[1763575024779,58.9427068,132.23,132.17,2.53]
[1763575024780,7.56334783,132.22,132.18,3.71720123]
[1763575025082,3.00720123,132.26,132.21,3.00720123]
[1763575025278,3.00720123,132.26,132.22,2.53]
[1763575025486,3.68720123,132.25,132.22,1.82]
[1763575025860,18.12096,132.26,132.22,1.82]
[1763575026199,3.00720123,132.27,132.23,0.71]
[1763575026407,3.00720123,132.29,132.24,3.00720123]
[1763575026582,55.90243196,132.34,132.23,0.71]
[1763575026583,8.23653558,132.34,132.28,3.00720123]
[1763575026772,15.38216345,132.34,132.29,8.96562787]
[1763575027113,7.14562787,132.32,132.29,1.82]
[1763575027799,7.14562787,132.32,132.27,0.71]
[1763575027800,7.14562787,132.3,132.27,1.82]
[1763575028099,14.70420685,132.3,132.27,1.82]
[1763575028301,7.55857898,132.3,132.27,1.82]
[1763575028495,7.55857898,132.3,132.27,2.53]
[1763575029006,7.55822744,132.31,132.28,0.71]
[1763575029195,7.14562787,132.31,132.28,0.71]
[1763575030302,7.55857898,132.3,132.28,0.71]
[1763575030881,7.55815035,132.31,132.28,0.71]
[1763575031091,14.70377822,132.31,132.28,0.71]
[1763575031405,7.55815035,132.31,132.28,0.71]
[1763575031705,7.14562787,132.34,132.29,7.14562787]
[1763575031882,0.68,132.38,132.32,7.14562787]
[1763575032080,0.68,132.38,132.33,9.67562787]
[1763575032081,7.55458185,132.37,132.33,9.67562787]
[1763575032276,8.23395977,132.39,132.33,16.52248627]
[1763575032580,7.14562787,132.38,132.34,0.71]
[1763575032981,0.1,132.4,132.34,7.85562787]
[1763575033179,7.24562787,132.4,132.35,7.14562787]
[1763575033388,7.652871,132.4,132.36,8.96562787]
[1763575033587,7.652871,132.4,132.36,9.67562787]
[1763575033588,0.1,132.4,132.36,9.67562787]
[1763575033797,0.1,132.4,132.37,0.71]
[1763575034002,0.1,132.4,132.37,7.85562787]
[1763575034408,0.1,132.4,132.37,0.71]
[1763575034578,7.24562787,132.4,132.37,0.71]
[1763575034776,11.28545335,132.4,132.37,0.71]
[1763575034982,11.28545335,132.4,132.35,11.89545335]
[1763575035282,11.28545335,132.4,132.36,2.53]
[1763575035485,11.28545335,132.4,132.36,25.45183181]
[1763575035695,11.18545335,132.39,132.36,2.53]
[1763575036299,7.55401117,132.38,132.36,2.53]
[1763575036507,11.28545335,132.4,132.36,2.53]
[1763575036681,7.65292672,132.4,132.37,0.71]
[1763575037601,0.1,132.4,132.38,11.18545335]
[1763575037779,0.1,132.4,132.39,2.53]
[1763575037978,0.1,132.4,132.39,13.71545335]
[1763575038180,0.1,132.4,132.39,21.26889394]
[1763575038394,0.1,132.44,132.39,40.15249542]
[1763575038594,0.1,132.44,132.42,11.18545335]
[1763575038796,0.1,132.44,132.43,1.82]
[1763575039794,11.28545335,132.44,132.43,1.82]
[1763575040113,0.1,132.44,132.43,1.82]
[1763575041008,0.1,132.44,132.43,21.27661245]
[1763575041220,0.1,132.44,132.43,13.72545335]
[1763575041405,0.1,132.44,132.43,2.54]
[1763575041800,0.1,132.44,132.43,1.82]
[1763575042002,0.1,132.44,132.43,2.54]
[1763575042223,0.1,132.44,132.39,46.7925067]
[1763575042224,0.1,132.44,132.4,19.45812564]
[1763575042537,11.96545335,132.44,132.41,1.82]
[1763575042701,11.18545335,132.43,132.41,1.82]
[1763575043090,11.96545335,132.44,132.41,1.82]
[1763575043622,0.1,132.44,132.42,0.72]
[1763575044318,7.65058894,132.44,132.42,0.72]
[1763575044701,11.85545335,132.43,132.36,23.82719374]
[1763575044890,11.18545335,132.41,132.37,13.72545335]
[1763575045090,11.18545335,132.41,132.38,0.72]
[1763575045599,0.67,132.43,132.38,11.90545335]
[1763575045807,7.55229967,132.41,132.38,11.90545335]
[1763575046002,7.55229967,132.41,132.39,0.72]
[1763575046201,18.73775302,132.41,132.4,1.82]
[1763575046415,7.55229967,132.41,132.4,1.82]
[1763575046802,6.05229967,132.41,132.4,1.82]
[1763575047926,36.7885022,132.41,132.36,22.84123311]
[1763575048116,11.18545335,132.38,132.37,1.82]
[1763575048492,11.85545335,132.38,132.36,1.82]
[1763575048818,11.85545335,132.38,132.29,18.89721568]
[1763575048819,11.18545335,132.37,132.35,1.82]
[1763575049020,11.18545335,132.36,132.35,1.82]
[1763575049202,11.18545335,132.38,132.35,2.54]
[1763575049407,18.79096,132.4,132.35,13.72545335]
[1763575049597,11.18545335,132.4,132.35,13.00545335]
[1763575049804,7.55401117,132.38,132.35,13.72545335]
[1763575050000,7.55401117,132.38,132.35,2.54]
[1763575050207,18.73892123,132.39,132.36,0.72]
[1763575050392,18.73892123,132.39,132.35,13.72545335]
[1763575050608,38.29252271,132.39,132.35,13.72545335]
[1763575051440,38.29252271,132.39,132.3,74.00545335]
[1763575051441,11.18545335,132.36,132.3,74.00545335]
[1763575051723,11.18545335,132.33,132.31,1.82]
[1763575051932,7.55697035,132.33,132.31,1.82]
[1763575052133,7.55697035,132.33,132.31,2.54]
[1763575052631,11.18545335,132.34,132.31,2.54]
[1763575052828,18.74192481,132.34,132.31,2.54]
[1763575052998,7.55647146,132.34,132.31,2.54]
[1763575053201,18.74192481,132.34,132.31,2.54]
[1763575053402,0.67,132.36,132.31,13.00545335]
[1763575053619,11.18545335,132.35,132.31,13.72545335]
[1763575053815,18.74122568,132.35,132.31,2.54]
[1763575054011,19.41122568,132.35,132.31,2.54]
[1763575054709,11.18545335,132.34,132.31,2.54]
[1763575054914,11.18545335,132.34,132.31,1.82]
[1763575055132,11.18545335,132.33,132.31,1.82]
[1763575055428,26.44508098,132.35,132.29,0.72]
[1763575055429,45.23604098,132.35,132.29,0.72]
[1763575055608,45.23604098,132.35,132.3,1.82]
[1763575055813,11.18545335,132.33,132.3,1.82]
[1763575056127,18.74256234,132.33,132.3,2.54]
[1763575056426,7.55710899,132.33,132.3,2.54]
[1763575056838,7.55710899,132.33,132.3,13.72545335]
[1763575057326,11.85545335,132.34,132.31,0.72]
[1763575057327,11.18545335,132.34,132.31,0.72]
[1763575057529,7.5567966,132.34,132.31,0.72]
[1763575057738,0.67,132.36,132.3,20.56398527]
[1763575057932,11.18545335,132.35,132.31,0.72]
[1763575058242,18.74174774,132.34,132.31,0.72]
[1763575058607,37.63248372,132.34,132.3,1.82]
[1763575058807,11.18545335,132.32,132.3,1.82]
[1763575059604,11.18545335,132.31,132.27,0.72]
[1763575059839,11.18545335,132.3,132.28,1.82]
[1763575060012,18.74441895,132.3,132.28,1.82]
[1763575060211,7.5589656,132.3,132.28,2.54]
[1763575060439,18.7435993,132.31,132.28,2.54]
[1763575060640,38.30861857,132.31,132.28,1.82]
[1763575061140,11.18545335,132.3,132.28,1.82]
[1763575061306,19.4135993,132.31,132.28,1.82]
[1763575061660,11.85545335,132.3,132.28,1.82]
[1763575061808,11.85545335,132.3,132.29,1.82]
[1763575062207,19.41403233,132.3,132.29,1.82]
[1763575062434,8.22857898,132.3,132.29,1.82]
[1763575062614,37.77182218,132.38,132.29,13.72545335]
[1763575062813,11.18545335,132.36,132.31,11.18545335]
[1763575063116,11.18545335,132.36,132.32,1.82]
[1763575063318,0.67,132.36,132.32,13.00545335]
[1763575063536,11.18545335,132.37,132.32,13.72545335]
[1763575063838,38.29648983,132.37,132.32,13.72545335]
[1763575064142,0.67,132.36,132.32,13.72545335]
[1763575064338,37.62648983,132.37,132.33,11.90545335]
[1763575064507,38.29648983,132.37,132.33,0.72]
[1763575064730,7.55458185,132.37,132.32,13.00545335]
[1763575065033,7.55458185,132.37,132.35,11.18545335]
[1763575065340,18.73718269,132.42,132.36,13.00545335]
[1763575065668,26.4310527,132.42,132.38,11.18545335]
[1763575065869,26.4310527,132.42,132.39,1.82]
[1763575066042,27.1010527,132.42,132.39,1.82]
[1763575066237,37.61650605,132.42,132.39,1.82]
[1763575066466,18.12096,132.39,132.32,0.72]
[1763575066679,29.30641335,132.39,132.34,11.18545335]
[1763575066832,11.85545335,132.38,132.35,1.82]
[1763575067038,11.18545335,132.37,132.35,1.82]
[1763575067269,11.85545335,132.37,132.35,1.82]
[1763575067564,11.85545335,132.36,132.35,1.82]
[1763575067768,7.55515261,132.36,132.35,1.82]
[1763575067940,0.67,132.38,132.35,1.82]
[1763575068141,11.85545335,132.38,132.35,1.82]
[1763575068544,0.67,132.37,132.35,1.82]
[1763575070064,7.55515261,132.36,132.35,1.82]
[1763575070265,18.74060596,132.36,132.35,1.82]
[1763575070562,38.34848749,132.36,132.33,1.82]
[1763575070770,11.90545335,132.35,132.33,1.82]
[1763575071062,11.18545335,132.34,132.33,1.82]
[1763575071264,11.90545335,132.34,132.33,1.82]
[1763575072147,19.46174774,132.34,132.33,1.82]
[1763575072573,11.18545335,132.35,132.33,1.82]
[1763575072756,0.72,132.35,132.33,1.82]
[1763575073862,7.55629439,132.34,132.33,1.82]
[1763575074272,7.55596726,132.35,132.33,13.00545335]
[1763575074642,7.55596726,132.35,132.33,1.82]
[1763575074846,27.16527591,132.35,132.34,1.82]
[1763575075776,27.16527591,132.35,132.31,11.85545335]
[1763575075777,38.35072926,132.35,132.31,11.85545335]
[1763575075966,38.35072926,132.35,132.32,1.82]
[1763575076566,26.44527591,132.35,132.32,2.49]
[1763575076757,27.16527591,132.35,132.32,13.00545335]
[1763575078477,7.55458185,132.37,132.33,11.85545335]
[1763575078649,7.55458185,132.37,132.34,11.18545335]
[1763575078850,7.55408074,132.38,132.35,1.82]
[1763575079050,0.72,132.38,132.35,1.82]
[1763575079477,0.72,132.38,132.35,13.00545335]
[1763575079847,7.55307708,132.4,132.37,11.18545335]
[1763575080053,7.55307708,132.4,132.38,13.00545335]
[1763575080259,7.55307708,132.4,132.38,1.82]
[1763575080460,0.72,132.39,132.35,11.18545335]
[1763575080679,11.18545335,132.38,132.35,1.82]
[1763575081178,11.90545335,132.37,132.35,1.82]
[1763575081387,11.18545335,132.37,132.35,1.82]
[1763575081685,0.72,132.37,132.35,1.82]
[1763575081888,7.55515261,132.36,132.35,1.82]
[1763575082072,37.62848749,132.36,132.3,0.67]
[1763575082377,11.18545335,132.31,132.25,33.74483496]
[1763575082682,11.18545335,132.3,132.26,13.67545335]
[1763575082874,11.90545335,132.32,132.27,11.18545335]
[1763575083189,11.90545335,132.31,132.27,11.85545335]
[1763575083478,11.18545335,132.3,132.26,13.00545335]
[1763575083772,11.90545335,132.3,132.26,1.82]
[1763575083990,38.36247957,132.29,132.26,1.82]
[1763575084294,11.18545335,132.27,132.22,0.67]
[1763575084455,11.18545335,132.26,132.23,1.82]
[1763575084790,11.90545335,132.28,132.23,13.00545335]
[1763575084954,11.90545335,132.28,132.23,13.67545335]
[1763575085465,11.90545335,132.28,132.24,0.67]
[1763575085657,11.18545335,132.27,132.23,13.00545335]
[1763575085866,19.46564983,132.28,132.24,11.85545335]
[1763575086072,18.74498028,132.29,132.25,11.18545335]
[1763575086378,8.2786075,132.3,132.26,1.82]
[1763575086575,19.46406085,132.3,132.26,1.82]
[1763575086781,19.46406085,132.3,132.26,13.67545335]
[1763575086960,18.12096,132.32,132.26,13.00545335]
[1763575087184,0.72,132.37,132.31,11.18545335]
[1763575087358,11.18545335,132.38,132.34,11.18545335]
[1763575087563,0.72,132.39,132.32,2.49]
[1763575087564,0.72,132.39,132.35,13.00545335]
[1763575087766,11.90545335,132.39,132.35,13.00545335]
[1763575087967,7.55401117,132.38,132.35,13.00545335]
[1763575088189,8.27401117,132.38,132.36,1.82]
[1763575088772,11.90545335,132.37,132.35,1.82]
[1763575089001,0.72,132.36,132.35,1.82]
[1763575089371,0.72,132.36,132.32,11.18545335]
[1763575089573,0.72,132.36,132.33,1.82]
[1763575090068,7.55572346,132.35,132.32,11.18545335]
[1763575090268,7.55572346,132.35,132.33,1.82]
[1763575090693,8.27572346,132.35,132.33,1.82]
[1763575090886,7.55572346,132.35,132.33,1.82]
[1763575091370,7.55532962,132.36,132.33,1.82]
[1763575091569,8.27532962,132.36,132.33,1.82]
[1763575091769,11.18545335,132.37,132.33,1.82]
[1763575091971,11.90545335,132.36,132.33,1.82]
[1763575092172,0.72,132.36,132.33,1.82]
[1763575092392,0.72,132.36,132.33,13.00545335]
[1763575092600,37.00617042,132.38,132.34,11.85545335]
[1763575092806,7.55458185,132.37,132.34,11.18545335]
[1763575092989,8.27458185,132.37,132.33,13.67545335]
[1763575093173,27.16103648,132.37,132.33,13.67545335]
[1763575093372,27.16103648,132.37,132.33,2.49]
[1763575093373,38.34648983,132.37,132.33,2.49]
[1763575093596,37.62648983,132.37,132.33,1.82]
[1763575093895,19.4600352,132.37,132.33,13.67545335]
[1763575094079,25.67505234,132.38,132.34,11.85545335]
[1763575094286,25.67505234,132.38,132.35,11.18545335]
[1763575094483,37.58050569,132.38,132.36,1.82]
[1763575094795,18.73954569,132.38,132.36,1.82]
[1763575095297,0.72,132.37,132.33,11.18545335]
[1763575095497,0.72,132.37,132.34,1.82]
[1763575095697,11.18545335,132.36,132.31,0.67]
[1763575095997,11.18545335,132.36,132.32,1.82]
[1763575096197,7.55572346,132.35,132.32,13.00545335]
[1763575096800,29.72978769,132.4,132.33,7.8114875]
[1763575096801,8.2742502,132.38,132.33,7.8114875]
[1763575097097,7.5542502,132.38,132.34,7.1414875]
[1763575097398,7.5542502,132.38,132.35,1.82]
[1763575097703,8.2742502,132.38,132.35,1.82]
[1763575097906,26.43927814,132.38,132.33,7.1414875]
[1763575098091,7.8614875,132.37,132.34,1.82]
[1763575098424,7.1414875,132.36,132.35,1.82]
[1763575098881,0.72,132.37,132.35,1.82]
[1763575098882,7.8614875,132.37,132.35,1.82]
[1763575099581,0.72,132.37,132.35,1.82]
[1763575099983,8.27513449,132.37,132.35,1.82]
[1763575100186,7.55431232,132.38,132.35,1.82]
[1763575100516,14.69522293,132.39,132.36,0.66]
[1763575100680,33.57882441,132.39,132.35,1.82]
[1763575100999,34.29882441,132.39,132.35,9.6214875]
[1763575101316,7.55255523,132.41,132.38,7.1414875]
[1763575101481,7.65076847,132.44,132.4,7.1414875]
[1763575101674,7.1414875,132.41,132.3,1.99999999]
[1763575101884,7.55629439,132.34,132.31,1.82]
[1763575102177,7.1414875,132.35,132.31,2.48]
[1763575102178,14.6974526,132.35,132.31,2.48]
[1763575102395,7.1414875,132.34,132.31,2.48]
[1763575102600,7.1414875,132.34,132.31,1.82]
[1763575102808,26.39590516,132.37,132.32,0.66]
[1763575102987,7.1414875,132.35,132.31,9.37800093]
[1763575103188,7.1414875,132.34,132.31,1.82]
[1763575103493,7.1414875,132.35,132.31,2.48]
[1763575103888,18.84096,132.36,132.31,2.48]
[1763575104080,26.39634662,132.36,132.31,17.17935074]
[1763575104278,7.55538662,132.36,132.33,7.1414875]
[1763575104502,7.55538662,132.36,132.34,1.82]
[1763575105009,7.55480187,132.37,132.35,0.71]
[1763575105205,25.67512341,132.38,132.35,0.71]
[1763575105388,33.51661091,132.38,132.34,1.82]
[1763575105579,33.51661091,132.38,132.34,2.53]
[1763575105782,7.1414875,132.37,132.34,1.82]
[1763575105999,7.1414875,132.37,132.34,2.53]
[1763575106204,7.55502645,132.37,132.34,1.82]
[1763575106383,14.69651395,132.37,132.34,2.53]
[1763575107489,7.55502645,132.37,132.34,2.53]
[1763575107806,0.7,132.43,132.36,7.1414875]
[1763575108106,7.1414875,132.42,132.38,7.1414875]
[1763575108315,7.8414875,132.43,132.38,7.1414875]
[1763575108522,7.8414875,132.43,132.39,7.8514875]
[1763575108735,7.8414875,132.43,132.4,1.82]
[1763575109080,7.1414875,132.43,132.4,1.82]
[1763575109318,7.2414875,132.44,132.4,1.82]
[1763575109518,0.7,132.43,132.4,1.82]
[1763575110090,7.55172934,132.42,132.4,1.82]
[1763575110415,0.1,132.44,132.41,7.8514875]
[1763575110622,0.1,132.44,132.4,8.9614875]
[1763575110623,0.8,132.44,132.4,8.9614875]
[1763575110790,7.65060204,132.44,132.4,7.8514875]
[1763575110991,7.65060204,132.44,132.41,1.82]
[1763575111214,15.49208954,132.44,132.42,1.82]
[1763575111392,14.79208954,132.44,132.42,1.82]
[1763575111587,7.8414875,132.43,132.42,1.82]
[1763575112930,7.1414875,132.43,132.42,1.82]
[1763575113130,0.1,132.44,132.42,1.82]
[1763575113291,7.65090136,132.44,132.42,1.82]
[1763575113485,15.49238886,132.44,132.42,1.82]
[1763575113718,15.49238886,132.44,132.33,0.75568654]
[1763575113719,7.8414875,132.43,132.35,0.71]
[1763575113901,7.8414875,132.43,132.36,18.12096]
[1763575113902,7.1414875,132.39,132.36,18.12096]
[1763575114090,7.1414875,132.39,132.37,1.82]
[1763575114290,7.1414875,132.4,132.37,1.82]
[1763575114494,26.52737372,132.44,132.37,2.53]
[1763575114495,18.12096,132.41,132.37,2.53]
[1763575114690,7.55287009,132.4,132.37,2.53]
[1763575114910,7.55287009,132.4,132.37,9.6714875]
[1763575115620,18.12096,132.41,132.37,2.53]
[1763575115830,14.69358206,132.42,132.38,7.1414875]
[1763575116027,0.7,132.41,132.38,7.1414875]
[1763575116233,15.39358206,132.42,132.37,17.22605639]
[1763575116598,14.69358206,132.42,132.37,16.51605639]
[1763575116789,7.55287009,132.4,132.37,2.53]
[1763575116989,7.55287009,132.4,132.37,9.6714875]
[1763575117242,18.82096,132.43,132.39,7.1414875]
[1763575117243,18.12096,132.43,132.39,7.1414875]
[1763575117535,25.9624475,132.43,132.4,1.82]
[1763575118008,18.82096,132.43,132.4,1.82]
[1763575118207,33.51368496,132.43,132.4,1.82]
[1763575118840,51.69158271,132.43,132.4,1.82]
[1763575119141,7.1414875,132.42,132.4,1.82]
[1763575119344,0.7,132.42,132.4,1.82]
[1763575119528,7.2414875,132.44,132.4,2.53]
[1763575119708,15.49209088,132.44,132.4,2.53]
[1763575119909,7.1414875,132.42,132.36,62.81]
[1763575120125,7.1414875,132.42,132.37,8.9614875]
[1763575120437,7.8414875,132.41,132.38,1.82]
[1763575120613,7.1414875,132.41,132.38,1.82]
[1763575120952,7.55287009,132.4,132.38,1.82]
[1763575121129,7.55287009,132.4,132.39,1.82]
[1763575122321,0.7,132.43,132.39,1.82]
[1763575122519,27.12905685,132.43,132.39,1.82]
[1763575122926,7.8414875,132.42,132.39,1.82]
[1763575123123,0.7,132.42,132.39,1.82]
[1763575123322,7.8414875,132.42,132.39,1.82]
[1763575124054,15.39378717,132.41,132.39,1.82]
[1763575124220,7.1414875,132.4,132.35,7.1414875]
[1763575124416,7.1414875,132.38,132.34,7.8514875]
[1763575124747,7.1414875,132.37,132.35,1.82]
[1763575125112,7.8414875,132.37,132.35,1.82]
[1763575125549,7.8414875,132.39,132.35,1.82]
[1763575125926,8.25401117,132.38,132.35,1.82]
[1763575126143,8.25401117,132.38,132.36,1.82]
[1763575126444,0.7,132.38,132.36,1.82]
[1763575126645,14.69496771,132.39,132.36,2.53]
[1763575127152,7.55348021,132.39,132.36,8.9614875]
[1763575127362,7.55348021,132.39,132.37,0.71]
[1763575127523,7.55348021,132.39,132.36,2.53]
[1763575127720,7.55348021,132.39,132.36,9.6714875]
[1763575128248,7.55348021,132.39,132.36,1.82]
[1763575128617,26.02415085,132.4,132.36,1.82]
[1763575128618,14.69471043,132.4,132.36,9.6714875]
[1763575128930,26.43539815,132.4,132.36,2.53]
[1763575129130,26.43539815,132.4,132.36,9.6714875]
[1763575129131,33.57688565,132.4,132.36,9.6714875]
[1763575129327,34.27688565,132.4,132.36,9.6714875]
[1763575129635,7.8414875,132.39,132.36,1.82]
[1763575130142,7.55401117,132.38,132.36,1.82]
[1763575130645,14.69549867,132.38,132.34,15.40747499]
[1763575130818,15.37549867,132.38,132.35,1.82]
[1763575131126,7.1414875,132.38,132.35,1.82]
[1763575131328,7.1414875,132.38,132.35,0.7]
[1763575131627,15.37459267,132.4,132.36,8.9614875]
[1763575131824,0.68,132.39,132.36,8.9614875]
[1763575132029,0.68,132.39,132.36,1.82]
[1763575132225,7.55401117,132.38,132.36,1.82]
[1763575132435,8.23345195,132.39,132.36,1.82]
[1763575132626,7.55345195,132.39,132.36,1.82]
[1763575132842,7.55345195,132.39,132.36,2.52]
[1763575133035,8.23345195,132.39,132.36,1.82]
[1763575133737,7.55345195,132.39,132.37,0.7]
[1763575133935,18.80096,132.42,132.36,8.9614875]
[1763575133936,7.55229967,132.41,132.36,8.9614875]
[1763575134136,14.69378717,132.41,132.37,0.7]
[1763575134343,0.68,132.4,132.36,15.39658718]
[1763575134528,0.68,132.4,132.38,1.82]
[1763575135118,7.55344059,132.39,132.38,1.82]
[1763575136151,44.14126612,132.43,132.38,9.6614875]
[1763575136452,7.55172934,132.42,132.39,0.7]
[1763575136642,8.23172934,132.42,132.39,0.7]
[1763575137029,8.23172934,132.42,132.38,8.9614875]
[1763575137226,7.8214875,132.41,132.36,0.7]
[1763575137537,7.1414875,132.4,132.37,1.82]
[1763575137750,0.68,132.4,132.37,1.82]
[1763575137925,7.1414875,132.41,132.37,1.82]
[1763575138130,0.68,132.39,132.38,1.82]
[1763575138342,7.1414875,132.4,132.38,1.82]
[1763575138540,7.55344059,132.39,132.38,1.82]
[1763575138956,8.23344059,132.39,132.38,1.82]
[1763575139248,15.37492809,132.39,132.38,1.82]
[1763575139863,7.1414875,132.4,132.38,1.82]
[1763575140075,18.88027234,132.42,132.38,1.82]
[1763575140363,0.68,132.4,132.38,1.82]
[1763575140669,7.55344059,132.39,132.38,1.82]
[1763575141479,0.78,132.44,132.38,9.6614875]
[1763575141654,0.1,132.44,132.43,7.1414875]
[1763575141845,0.1,132.44,132.43,1.82]
[1763575142359,7.65058894,132.44,132.43,1.82]
[1763575142946,14.79207644,132.44,132.43,1.82]
[1763575143156,15.47207644,132.44,132.43,1.82]